bitfinex/quotes_ETHUSD_20250329
["timestamp","ask_amount","ask_price","bid_price","bid_amount"]
[1743251018758,3.00215593,1859.6,1859.2,5.37839]
[1743251018759,3.83085593,1859.5,1859.2,5.37839]
[1743251018958,3.00215593,1859.3,1859.2,5.37839]
[1743251019928,4.13107152,1859.5,1859.3,5.37818]
[1743251020192,3.83085593,1859.5,1859.3,10.7564]
[1743251020368,3.83085593,1859.5,1859.3,5.3783]
[1743251021395,6.5007,1859.7,1859.4,5.37807]
[1743251021576,7.57876189,1859.7,1859.4,10.75598]
[1743251021773,3.00215593,1859.6,1859.5,5.37776]
[1743251023681,3.00215593,1859.6,1859.4,10.75584]
[1743251023994,3.00215593,1859.6,1859.4,5.37791]
[1743251024498,3.00215593,1859.6,1859.5,5.37778]
[1743251025052,9.50185593,1859.7,1859.5,5.37778]
[1743251025581,1.5415444,1859.9,1859.2,6.14305]
[1743251025748,4.24348474,1859.9,1859.7,5.37699]
[1743251026375,9.50185593,1860.1,1859.9,5.37655]
[1743251026870,3.83085593,1860.1,1860.0,5.37634]
[1743251027077,3.00215593,1860.2,1860.0,5.37634]
[1743251027276,3.40808052,1860.2,1860.0,5.37634]
[1743251027492,3.00215593,1860.2,1860.1,5.37605]
[1743251027799,3.00215593,1860.3,1860.1,5.37591]
[1743251027998,3.00215593,1860.3,1860.2,5.37576]
[1743251028681,3.00215593,1860.3,1860.1,5.3759]
[1743251028881,3.75365593,1860.2,1859.8,5.37691]
[1743251029183,6.12889,1859.7,1859.3,5.37809]
[1743251029375,3.00215593,1859.5,1859.3,5.37834]
[1743251029772,3.00215593,1859.5,1859.2,6.1784]
[1743251029773,3.75365593,1859.7,1859.4,5.37781]
[1743251029971,9.42265593,1859.7,1859.4,5.37781]
[1743251030177,10.66492152,1859.7,1859.4,5.37781]
[1743251030705,3.00215593,1859.5,1859.4,5.37781]
[1743251031093,3.00215593,1859.5,1859.3,5.37835]
[1743251031406,3.00215593,1859.5,1859.3,10.75652]
[1743251032084,3.00215593,1859.5,1859.3,5.37817]
[1743251032777,3.00215593,1859.5,1859.3,10.75632]
[1743251032982,3.00215593,1859.5,1859.3,5.37815]
[1743251033192,3.40296312,1859.5,1859.3,5.37815]
[1743251033411,3.00215593,1859.5,1859.3,5.37815]
[1743251033611,3.00215593,1859.5,1859.4,5.37807]
[1743251036007,3.69670821,1859.5,1859.2,5.37842]
[1743251038188,3.39649262,1859.5,1859.4,5.37807]
[1743251038588,0.39433669,1859.5,1859.4,5.37807]
[1743251038783,6.00215593,1859.6,1859.4,5.37807]
[1743251039523,3.40656234,1859.6,1859.5,5.37778]
[1743251040095,0.40440641,1859.6,1859.5,5.37778]
[1743251040296,3.00215593,1859.7,1859.5,5.37778]
[1743251040492,3.00215593,1859.7,1859.6,5.3775]
[1743251040689,3.00215593,1859.9,1859.8,5.37692]
[1743251040922,0.40315275,1860.0,1859.8,10.75364]
[1743251041095,3.00215593,1860.0,1859.8,10.75364]
[1743251041295,3.00215593,1860.0,1859.8,5.37672]
[1743251041896,3.00215593,1859.9,1859.7,6.177]
[1743251042119,3.00215593,1859.9,1859.7,5.3772]
[1743251042328,3.00215593,1859.9,1859.7,5.37697]
[1743251042500,3.00215593,1859.9,1859.8,5.37692]
[1743251043401,3.00215593,1860.1,1859.9,5.37642]
[1743251043622,3.81535593,1860.3,1860.1,5.37588]
[1743251043827,5.667,1860.4,1860.2,5.37576]
[1743251044028,8.66915593,1860.4,1860.2,5.37576]
[1743251044228,0.94823559,1860.4,1860.3,5.37547]
[1743251044519,3.00215593,1860.6,1860.4,5.37518]
[1743251044827,0.40614535,1860.6,1860.4,5.37518]
[1743251045024,3.00215593,1860.7,1860.4,5.37518]
[1743251045196,4.4876956,1860.7,1860.4,10.75015]
[1743251045699,4.4876956,1860.7,1860.5,5.37482]
[1743251046323,3.00215593,1860.6,1860.4,5.37497]
[1743251047232,3.00215593,1860.5,1860.2,5.37576]
[1743251047434,3.00215593,1860.3,1860.1,5.37591]
[1743251047603,3.00215593,1860.2,1860.1,5.37591]
[1743251047812,6.18813,1860.5,1860.1,5.37591]
[1743251047813,3.00215593,1860.3,1860.1,5.37591]
[1743251049629,1.05445842,1860.4,1860.1,5.37591]
[1743251049949,3.00215593,1860.3,1860.2,5.37576]
[1743251050133,4.05661435,1860.4,1860.3,5.37547]
[1743251050436,3.00215593,1860.4,1860.3,5.37547]
[1743251050598,3.00215593,1860.4,1860.2,5.37569]
[1743251051004,3.00215593,1860.3,1860.1,5.37592]
[1743251051302,3.00215593,1860.3,1860.2,5.37576]
[1743251051512,3.81535593,1860.5,1860.3,5.37545]
[1743251051707,3.81535593,1860.5,1860.3,5.37533]
[1743251052311,3.00215593,1860.5,1860.4,5.37518]
[1743251052837,0.40913796,1860.6,1860.5,5.37489]
[1743251053018,8.66515593,1860.7,1860.6,5.37461]
[1743251054521,5.663,1860.7,1860.6,5.37461]
[1743251054902,8.66515593,1860.7,1860.6,5.37461]
[1743251056240,3.00215666,1860.8,1860.7,5.37432]
[1743251056718,3.40303788,1860.8,1860.7,5.37432]
[1743251056918,3.40303788,1860.8,1860.6,5.37461]
[1743251057242,3.81535593,1860.7,1860.4,5.37497]
[1743251057459,3.00215593,1860.5,1860.4,5.37493]
[1743251057620,3.00215593,1860.6,1860.5,5.37475]
[1743251058611,3.40303788,1860.8,1860.7,5.37432]
[1743251060211,3.40303788,1860.8,1860.5,10.74932]
[1743251060411,3.00215593,1860.7,1860.6,5.37461]
[1743251060841,3.34245972,1860.7,1860.5,5.37487]
[1743251061038,3.00215593,1860.6,1860.5,5.37487]
[1743251061611,3.00215593,1860.6,1860.4,10.75019]
[1743251062419,3.00215593,1860.6,1860.4,5.37503]
[1743251063915,9.12962593,1860.5,1860.1,0.7593]
[1743251064120,3.00215593,1860.2,1860.0,10.75219]
[1743251064325,3.00215593,1860.2,1860.1,5.37605]
[1743251064745,3.00215593,1860.2,1860.0,5.37606]
[1743251066550,3.00215593,1860.4,1860.2,5.37576]
[1743251066747,3.00215593,1860.4,1860.1,5.37605]
[1743251066933,3.00215593,1860.4,1860.1,5.37589]
[1743251067126,3.00215593,1860.3,1860.1,5.37589]
[1743251067521,7.21254572,1860.5,1860.0,5.37632]
[1743251067522,3.00215593,1860.2,1860.0,5.37632]
[1743251067922,3.00215593,1860.2,1860.0,10.75243]
[1743251068422,3.00215593,1860.3,1860.1,5.37605]
[1743251068623,3.39756924,1860.3,1860.1,5.37605]
[1743251068818,3.39756924,1860.3,1860.1,5.37584]
[1743251069144,0.39541331,1860.3,1860.2,5.37576]
[1743251069348,3.00215593,1860.4,1860.3,5.37547]
[1743251070244,3.00215593,1860.4,1860.2,5.37576]
[1743251070846,3.00215593,1860.3,1860.1,5.37604]
[1743251071027,3.00215593,1860.3,1860.0,15.37633]
[1743251071357,3.00215593,1860.2,1860.0,15.37633]
[1743251071854,3.00215593,1860.2,1860.0,20.75246]
[1743251072034,3.00215593,1860.2,1860.0,15.37613]
[1743251072635,4.2469232,1860.3,1860.0,15.37613]
[1743251073032,4.2469232,1860.3,1859.1,5.37878]
[1743251073033,3.7652,1859.6,1859.1,5.37878]
[1743251073236,3.00215593,1859.4,1859.0,6.14533]
[1743251073446,3.00215593,1859.2,1859.0,6.14533]
[1743251073962,3.00215593,1859.4,1859.1,5.37889]
[1743251074539,0.50357819,1859.3,1859.1,5.37889]
[1743251074727,0.50357819,1859.3,1859.0,6.14533]
[1743251075127,0.50357819,1859.3,1858.8,0.77046224]
[1743251075128,3.76735593,1859.2,1858.8,0.77046224]
[1743251075454,3.00215593,1858.9,1858.8,0.00436224]
[1743251076124,8.38167593,1858.9,1858.8,0.00436224]
[1743251076329,8.93167593,1858.9,1858.8,0.00436224]
[1743251076752,9.43525412,1858.9,1858.8,0.00436224]
[1743251076940,10.91671553,1858.9,1858.8,0.00436224]
[1743251077656,11.68191553,1858.9,1858.8,0.00436224]
[1743251078055,12.08086848,1858.9,1858.8,0.00436224]
[1743251078933,12.50317721,1858.9,1858.8,0.00436224]
[1743251079329,15.50317721,1858.9,1858.8,0.00436224]
[1743251080734,14.95317721,1858.9,1858.8,0.00436224]
[1743251080930,7.3269958,1858.9,1858.8,0.00436224]
[1743251085866,0.90253114,1858.9,1858.8,5.38417224]
[1743251086031,0.50357819,1858.9,1858.8,5.38417224]
[1743251087066,10.16002367,1859.1,1858.8,5.38417224]
[1743251088367,0.49910327,1859.0,1858.8,5.38417224]
[1743251089332,0.49910327,1859.0,1858.8,0.00436224]
[1743251089666,3.42446466,1858.9,1858.8,0.00436224]
[1743251090367,3.80743658,1858.9,1858.8,0.00436224]
[1743251090532,9.18695658,1858.9,1858.8,0.00436224]
[1743251090736,12.68658967,1858.9,1858.8,0.00436224]
[1743251092165,13.23658967,1858.9,1858.8,0.00436224]
[1743251092370,14.03738967,1858.9,1858.8,0.00436224]
[1743251099156,14.82421045,1858.9,1858.8,0.00436224]
[1743251100366,5.38155,1858.2,1857.8,6.2012]
[1743251100544,3.42446466,1858.1,1857.8,11.58371]
[1743251101048,5.38155,1858.2,1857.8,11.58371]
[1743251101049,3.00727917,1858.0,1857.8,11.58371]
[1743251101575,3.50691226,1858.0,1857.9,5.38242]
[1743251102270,3.50691226,1858.0,1857.8,6.2012]
[1743251102575,3.00727917,1857.9,1857.8,0.8187]
[1743251102777,0.49963309,1858.0,1857.9,5.38242]
[1743251102965,3.00727917,1858.2,1858.0,5.38187]
[1743251103174,8.66427917,1858.3,1858.0,5.38187]
[1743251103350,8.66427917,1858.3,1858.0,10.7638]
[1743251103551,9.76391919,1858.3,1858.0,10.7638]
[1743251103750,9.76391919,1858.3,1858.0,10.76379]
[1743251104648,0.5036595,1858.2,1858.0,10.76379]
[1743251105180,0.5036595,1858.2,1858.1,6.21284]
[1743251106972,37.14527917,1858.8,1858.5,6.21168]
[1743251107178,9.07555133,1858.8,1858.5,6.21168]
[1743251107483,9.07555133,1858.8,1858.6,5.38034]
[1743251107875,3.00727917,1858.9,1858.5,0.831]
[1743251108375,3.00727917,1858.9,1858.7,5.38009]
[1743251108859,8.66327917,1859.0,1858.8,5.37981]
[1743251109776,3.00727917,1859.0,1858.8,5.37981]
[1743251109995,3.0,1859.0,1858.8,10.75948]
[1743251110154,3.0,1859.0,1858.8,5.37967]
[1743251111476,4.06860233,1859.1,1858.8,6.21059]
[1743251111883,1.06132316,1859.1,1858.8,6.21059]
[1743251112179,1.06132316,1859.1,1858.9,5.37938]
[1743251113453,3.00727917,1859.0,1858.8,0.831]
[1743251113683,3.00727917,1858.9,1858.8,0.831]
[1743251114271,3.00727917,1859.0,1858.8,0.831]
[1743251114579,4.06860233,1859.1,1858.8,6.21081]
[1743251114751,3.00727917,1859.0,1858.8,6.21081]
[1743251115558,3.00727917,1859.0,1858.8,11.59041]
[1743251115882,4.06860233,1859.1,1858.9,5.37952]
[1743251116087,1.51056184,1859.4,1859.2,5.37865]
[1743251116286,1.51056184,1859.4,1859.2,6.20965]
[1743251116461,2.52774594,1859.4,1859.2,6.20965]
[1743251116661,1.51056184,1859.4,1859.2,6.20965]
[1743251116862,9.75132911,1859.5,1859.2,6.20965]
[1743251117059,10.14929605,1859.5,1859.2,6.20965]
[1743251117466,10.14829605,1859.5,1859.2,6.20965]
[1743251117857,0.7654,1859.1,1858.7,10.0]
[1743251118057,12.70248917,1858.8,1858.7,10.0]
[1743251118263,12.70248917,1858.8,1858.7,5.68868748]
[1743251118264,12.72390995,1858.8,1858.7,5.68868748]
[1743251118490,14.23236153,1858.8,1858.7,5.68868748]
[1743251118660,16.19355968,1858.8,1858.7,5.68868748]
[1743251119291,19.61506915,1858.8,1858.7,5.68868748]
[1743251119480,18.88191757,1858.8,1858.7,5.68868748]
[1743251119661,19.96074768,1858.8,1858.7,5.68868748]
[1743251120903,17.37204379,1858.8,1858.7,5.68868748]
[1743251125104,16.58522301,1858.8,1858.7,5.68868748]
[1743251126183,22.23722301,1858.8,1858.7,5.68868748]
[1743251132211,22.23722301,1858.8,1858.7,5.54408748]
[1743251133514,4.47093478,1858.7,1858.0,0.2]
[1743251133806,4.47093478,1858.7,1857.7,0.7802]
[1743251133807,5.93394,1857.4,1856.7,6.16581]
[1743251134007,6.28430677,1857.9,1857.3,6.16409]
[1743251134204,3.0,1857.8,1857.4,5.38379]
[1743251134408,3.0,1857.8,1857.3,6.16409]
[1743251134409,4.06152093,1857.8,1857.3,6.16409]
[1743251134583,8.80964445,1857.5,1857.3,0.7802]
[1743251135412,5.652,1857.4,1856.9,10.77023]
[1743251135614,3.42585445,1857.3,1857.0,5.385]
[1743251135781,3.42585445,1857.3,1856.9,5.3851]
[1743251135988,3.42585445,1857.1,1856.7,10.77137]
[1743251136205,3.42585445,1857.1,1856.7,11.848537]
[1743251136509,8.81060445,1857.1,1856.7,6.462777]
[1743251136717,8.81060445,1857.1,1856.7,5.38564]
[1743251137411,8.81060445,1857.1,1856.6,5.38615]
[1743251137785,9.20620608,1857.1,1856.7,5.38587]
[1743251138417,3.82145608,1857.1,1856.7,6.16607]
[1743251139526,3.82145608,1857.1,1856.7,11.55173]
[1743251139726,3.82145608,1857.1,1856.7,12.706903]
[1743251140245,5.652,1857.0,1856.7,0.7802]
[1743251140518,5.652,1857.4,1857.0,5.3849]
[1743251140738,5.652,1857.4,1857.1,0.7802]
[1743251141242,6.72407075,1857.4,1857.1,0.7802]
[1743251141596,15.5337952,1857.4,1857.1,0.7802]
[1743251144597,15.92897751,1857.4,1857.1,0.7802]
[1743251144924,3.00971531,1857.2,1857.1,0.7802]
[1743251145290,3.00971531,1857.3,1857.1,6.16479]
[1743251145824,2.96690791,1857.3,1857.1,0.7802]
[1743251146024,3.00971531,1857.2,1857.1,0.7802]
[1743251146612,3.00971531,1857.3,1857.1,6.16493]
[1743251147435,3.00971531,1857.3,1857.1,0.7802]
[1743251147832,3.00971531,1857.2,1857.0,10.0]
[1743251148238,3.00971531,1857.2,1857.0,15.38502]
[1743251149558,4.56100215,1857.3,1857.1,5.38473]
[1743251149717,3.00971531,1857.3,1857.0,15.38502]
[1743251149918,3.00971531,1857.2,1857.0,15.38481]
[1743251150323,3.00971531,1857.3,1857.0,15.38481]
[1743251150636,3.00971531,1857.3,1857.1,5.3846]
[1743251150943,3.00971531,1857.3,1857.2,5.38444]
[1743251151449,10.12796837,1857.4,1857.2,5.38444]
[1743251151809,10.12796837,1857.4,1857.1,6.14583]
[1743251152013,10.12796837,1857.4,1857.1,11.5304]
[1743251152211,10.12796837,1857.4,1857.1,6.14567]
[1743251152436,10.12796837,1857.4,1857.1,6.14566]
[1743251152739,10.12796837,1857.4,1857.2,5.38441]
[1743251153313,4.47696837,1857.4,1857.3,5.38415]
[1743251153514,8.651,1857.5,1857.3,10.76817]
[1743251153939,3.00971531,1857.6,1857.4,5.38369]
[1743251155055,3.00971531,1857.5,1857.4,5.38369]
[1743251155940,3.00971531,1857.5,1857.3,5.38415]
[1743251156148,3.00971531,1857.4,1857.3,5.38415]
[1743251156318,3.00971531,1857.5,1857.3,5.38415]
[1743251157220,3.00971531,1857.5,1857.3,10.76816]
[1743251157535,3.00971531,1857.5,1857.3,5.38401]
[1743251158110,3.00971531,1857.5,1857.2,5.38442]
[1743251158337,3.00971531,1857.5,1857.3,5.38408]
[1743251159847,3.00971531,1857.5,1857.3,10.76804]
[1743251161056,3.00971531,1857.5,1857.2,5.38423]
[1743251161465,3.00971531,1857.3,1857.2,5.38423]
[1743251161674,3.00971531,1857.3,1857.2,5.38444]
[1743251162174,5.38456,1857.2,1857.0,10.0]
[1743251162377,3.00971531,1857.1,1857.0,10.0]
[1743251162677,3.31068684,1857.1,1857.0,10.0]
[1743251162875,3.00971531,1857.1,1857.0,10.0]
[1743251163239,9.79423062,1857.1,1857.0,10.0]
[1743251163443,9.79423062,1857.1,1856.4,6.17524]
[1743251163671,3.78451531,1856.5,1856.0,6.17633]
[1743251163826,3.00971531,1856.2,1856.1,5.38759]
[1743251164170,3.00971531,1856.6,1856.4,5.38652]
[1743251164376,3.00971531,1856.8,1856.6,5.38598]
[1743251164546,3.00971531,1856.7,1856.5,0.7886]
[1743251164746,3.00971531,1856.6,1856.5,6.17507]
[1743251164942,3.00971531,1856.7,1856.5,0.7886]
[1743251165137,3.00971531,1856.6,1856.4,5.38651]
[1743251165358,3.00971531,1856.5,1856.3,6.17565]
[1743251165540,1.07577153,1856.7,1856.3,6.17565]
[1743251165541,3.00971531,1856.4,1856.3,6.17565]
[1743251165933,3.00971531,1856.5,1856.3,6.17565]
[1743251166128,3.00971531,1856.6,1856.4,5.38676]
[1743251166328,3.00971531,1856.5,1856.4,5.38676]
[1743251166552,3.00971531,1856.5,1856.3,6.17565]
[1743251167331,3.00971531,1856.4,1856.3,0.7886]
[1743251167532,3.00971531,1856.4,1856.2,5.38725]
[1743251168941,3.55971531,1856.6,1856.3,5.38702]
[1743251169142,4.55806684,1856.6,1856.2,5.38725]
[1743251169342,4.55806684,1856.6,1856.2,5.3872]
[1743251169534,5.61749277,1856.6,1856.2,5.3872]
[1743251169738,3.00971531,1856.5,1856.2,5.3872]
[1743251170366,3.00971531,1856.5,1856.1,6.17622]
[1743251170552,3.00971531,1856.5,1856.2,5.38733]
[1743251170943,3.00971531,1856.3,1856.0,5.38788]
[1743251171259,5.46992947,1856.6,1856.3,5.38699]
[1743251172263,8.47964478,1856.6,1856.3,5.38699]
[1743251172635,8.47964478,1856.6,1856.2,0.7886]
[1743251172837,8.47964478,1856.6,1856.2,6.1757]
[1743251173159,6.85767979,1856.5,1856.1,5.38762]
[1743251173359,6.85767979,1856.5,1856.0,6.17627]
[1743251173360,3.00971531,1856.4,1856.0,6.17627]
[1743251174078,3.00971531,1856.4,1856.0,11.56406]
[1743251174283,3.00971531,1856.4,1856.0,6.17627]
[1743251174771,3.78451531,1856.3,1855.8,5.38836]
[1743251174938,3.00971531,1856.1,1855.8,5.38836]
[1743251175268,3.38816684,1856.2,1855.8,5.38833]
[1743251175561,3.00971531,1856.1,1855.7,0.7886]
[1743251175767,3.00971531,1856.0,1855.7,6.17735]
[1743251176063,3.00971531,1856.0,1855.7,0.7886]
[1743251176241,3.00971531,1856.0,1855.6,10.77775]
[1743251176661,3.00971531,1856.0,1855.6,5.38884]
[1743251176853,3.00971531,1855.9,1855.6,5.38884]
[1743251177174,1.36882781,1856.0,1855.7,5.38878]
[1743251177373,4.37854312,1856.0,1855.6,5.38884]
[1743251177775,4.37854312,1856.0,1855.2,5.39001]
[1743251177776,3.00971531,1855.7,1855.2,5.39001]
[1743251178073,3.00971531,1855.6,1855.3,5.38992]
[1743251178276,3.40773102,1855.6,1855.2,5.39001]
[1743251178441,3.00971531,1855.5,1855.2,10.78012]
[1743251178645,3.00971531,1855.5,1855.2,5.39001]
[1743251178844,3.00971531,1855.5,1855.3,5.38984]
[1743251179586,3.00971531,1855.7,1855.4,5.38967]
[1743251179790,3.00971531,1855.7,1855.5,5.38938]
[1743251180090,3.00971531,1855.7,1855.4,5.38967]
[1743251180091,1.1035019,1855.6,1855.4,5.38967]
[1743251181790,0.40494231,1855.7,1855.6,5.38908]
[1743251181957,0.40494231,1855.7,1855.3,0.7917]
[1743251182146,1.10685043,1855.7,1855.5,5.38926]
[1743251182848,4.11656574,1855.7,1855.4,5.38967]
[1743251183775,3.00971531,1855.6,1855.4,5.38967]
[1743251183962,3.00971531,1855.6,1855.4,5.38955]
[1743251184348,4.11656574,1855.7,1855.4,5.38955]
[1743251184544,4.11656574,1855.7,1855.5,5.38936]
[1743251184750,4.11656574,1855.7,1855.5,5.38931]
[1743251185052,6.83491531,1855.8,1855.6,5.38898]
[1743251185253,6.83491531,1855.8,1855.5,5.38931]
[1743251185475,3.00971531,1855.6,1855.4,5.38966]
[1743251185681,3.0,1855.6,1855.3,5.38995]
[1743251185980,3.00971531,1855.7,1855.4,5.38965]
[1743251186280,3.00971531,1855.5,1855.3,6.18489]
[1743251186655,3.00971531,1855.5,1855.3,11.5746]
[1743251187755,3.00971531,1855.6,1855.4,5.38966]
[1743251188379,3.00971531,1855.7,1855.4,5.38966]
[1743251188585,3.00971531,1855.6,1855.4,5.38966]
[1743251189168,3.00971531,1855.5,1855.3,5.38978]
[1743251189381,3.00971531,1855.6,1855.3,5.38978]
[1743251189566,3.00971531,1855.6,1855.3,10.77952]
[1743251189760,3.00971531,1855.6,1855.5,5.38938]
[1743251189959,3.00971531,1855.7,1855.5,5.38938]
[1743251190664,3.58222942,1855.8,1855.5,5.38938]
[1743251190878,3.39671196,1855.8,1855.7,5.3888]
[1743251191270,0.39671196,1855.8,1855.6,5.38901]
[1743251191454,3.00971531,1855.9,1855.6,5.38888]
[1743251191857,3.41835966,1855.9,1855.6,5.38888]
[1743251192357,4.47533129,1855.9,1855.7,5.38878]
[1743251193387,4.47533129,1855.9,1855.7,5.38872]
[1743251193688,3.83191531,1856.2,1856.0,5.3879]
[1743251193868,10.57103858,1856.2,1855.9,5.38816]
[1743251194184,3.00971531,1856.5,1856.3,5.38706]
[1743251194758,3.0,1856.4,1856.2,10.77437]
[1743251195177,3.0,1856.4,1856.2,5.38714]
[1743251195378,3.00971531,1856.4,1856.1,5.38756]
[1743251195578,3.00971531,1856.4,1856.2,5.38719]
[1743251196486,6.00971531,1856.5,1856.2,10.77434]
[1743251196679,3.00971531,1856.4,1856.2,10.77434]
[1743251196875,7.52652318,1856.6,1856.3,5.38706]
[1743251197076,3.0,1856.5,1856.3,5.38706]
[1743251197284,3.41807597,1856.7,1856.5,5.38647]
[1743251197591,8.65671531,1856.7,1856.5,5.38647]
[1743251197780,3.0,1856.6,1856.5,5.38647]
[1743251198291,3.0,1856.6,1856.4,5.38669]
[1743251198489,6.00971531,1856.6,1856.4,5.38669]
[1743251198809,6.00971531,1856.6,1856.4,10.77323]
[1743251198981,6.00971531,1856.6,1856.4,5.38654]
[1743251199377,6.00971531,1856.6,1856.4,10.77309]
[1743251199591,3.00971531,1856.5,1856.3,5.38684]
[1743251200202,3.61068684,1856.5,1856.3,5.38684]
[1743251200566,3.0,1856.3,1855.9,5.38821]
[1743251200772,3.00971531,1856.2,1856.0,5.38782]
[1743251201482,6.20912,1856.4,1856.1,5.38747]
[1743251201483,3.83191531,1856.4,1856.1,5.38747]
[1743251201681,3.83191531,1856.4,1856.2,5.38735]
[1743251201682,0.44328868,1856.4,1856.2,5.38735]
[1743251201888,3.83191531,1856.6,1856.4,5.38654]
[1743251202083,3.0,1856.5,1856.3,5.38698]
[1743251202413,6.00971531,1856.5,1856.3,5.38698]
[1743251202649,6.06,1858.1,1856.5,0.7768]
[1743251202899,3.00971531,1858.2,1857.8,5.38256]
[1743251203069,3.0,1857.9,1857.3,5.38398]
[1743251203274,4.13191531,1857.8,1857.3,5.38398]
[1743251203469,9.77791531,1857.8,1857.3,5.38398]
[1743251203698,9.77791531,1857.8,1857.3,10.76801]
[1743251203906,3.55,1857.7,1857.4,5.38386]
[1743251205203,0.55,1857.7,1857.4,5.38386]
[1743251205384,3.55,1857.7,1857.4,5.38386]
[1743251205584,0.355,1857.6,1857.4,5.38386]
[1743251206180,0.355,1857.6,1857.3,5.38398]
[1743251206685,0.355,1857.6,1857.4,5.38385]
[1743251208285,6.193,1857.7,1857.4,5.38385]
[1743251209302,6.193,1857.7,1857.3,5.38398]
[1743251209505,6.193,1857.7,1857.4,5.38374]
[1743251210396,0.55,1857.5,1857.1,5.38455]
[1743251210600,0.55,1857.5,1857.2,5.38439]
[1743251210977,0.55,1857.3,1856.4,0.538698]
[1743251211308,3.0,1857.1,1856.8,5.38539]
[1743251212604,3.0,1857.1,1856.8,10.77078]
[1743251212924,3.0,1857.1,1857.0,5.38502]
[1743251213898,8.642,1857.2,1857.1,5.38473]
[1743251215728,3.0,1857.2,1857.1,5.38473]
[1743251216728,3.0,1857.2,1857.0,5.38502]
[1743251216932,3.0,1857.1,1857.0,5.38502]
[1743251217238,0.6,1857.1,1856.8,5.38559]
[1743251217438,0.7532,1857.0,1856.7,5.38585]
[1743251217595,11.81312991,1856.9,1856.5,6.15932]
[1743251217793,6.42780991,1856.9,1856.5,5.38626]
[1743251218304,6.42780991,1856.9,1856.6,5.38615]
[1743251218616,4.82081399,1856.9,1856.6,5.38615]
[1743251219616,3.0,1856.9,1856.8,5.38549]
[1743251219824,0.55,1856.8,1856.4,5.38662]
[1743251220115,10.11673991,1856.8,1856.4,5.38663]
[1743251220319,10.11673991,1856.8,1856.4,10.77326]
[1743251220820,4.73100991,1856.8,1856.5,5.38638]
[1743251221596,6.5811989,1856.8,1856.5,5.38638]
[1743251221798,6.5811989,1856.8,1856.4,5.38669]
[1743251221799,12.36910526,1856.8,1856.4,5.38669]
[1743251222395,3.0,1856.6,1856.4,5.38674]
[1743251225195,3.0,1856.6,1856.4,10.7733]
[1743251225396,3.0,1856.6,1856.5,5.38647]
[1743251228321,8.641,1856.9,1856.7,5.38589]
[1743251228523,6.06,1857.1,1857.0,5.38502]
[1743251228821,6.395,1857.2,1857.0,5.38502]
[1743251229025,3.0,1857.1,1857.0,5.38502]
[1743251231111,3.0,1857.1,1856.9,10.77039]
[1743251231516,3.0,1857.1,1857.0,5.38502]
[1743251234616,3.0,1857.2,1857.0,5.38502]
[1743251235124,3.0,1857.2,1857.1,5.38463]
[1743251235323,3.0,1857.2,1857.0,5.38494]
[1743251235829,3.0,1857.2,1857.1,5.38473]
[1743251237403,3.0,1857.2,1857.0,5.38494]
[1743251238214,3.0,1857.2,1856.5,6.463753]
[1743251238215,3.0,1857.0,1856.5,6.463753]
[1743251238497,9.0685455,1856.9,1856.6,5.38612]
[1743251238736,3.0,1856.8,1856.6,5.38612]
[1743251239595,3.0,1857.0,1856.7,10.7716]
[1743251239802,3.0,1857.0,1856.7,5.38571]
[1743251240828,3.0,1857.0,1856.7,10.77147]
[1743251241000,5.639,1857.2,1856.8,0.8297]
[1743251241200,5.639,1857.2,1856.9,5.38521]
[1743251241425,3.0,1857.1,1856.9,5.38521]
[1743251242027,3.0,1857.1,1856.8,11.60077]
[1743251242500,0.55,1857.0,1856.7,5.38584]
[1743251242706,0.7546,1856.9,1856.6,5.38594]
[1743251243631,3.0,1856.8,1856.5,6.216]
[1743251243797,3.40653621,1856.8,1856.5,6.216]
[1743251243999,3.40653621,1856.8,1856.5,11.60226]
[1743251244401,3.40653621,1856.8,1856.5,6.21596]
[1743251244802,3.40653621,1856.8,1856.5,11.60226]
[1743251245102,0.40653621,1856.8,1856.6,5.38606]
[1743251245314,3.7546,1856.9,1856.6,5.38606]
[1743251246334,3.7546,1856.9,1856.5,6.21596]
[1743251246742,9.14002,1856.9,1856.5,11.6022]
[1743251246920,9.14002,1856.9,1856.6,5.38615]
[1743251247111,3.0,1856.9,1856.7,5.38587]
[1743251247317,8.638,1856.9,1856.7,10.77159]
[1743251247518,8.638,1856.9,1856.7,5.38572]
[1743251248050,8.638,1856.9,1856.7,10.77149]
[1743251248419,3.0,1857.1,1856.9,5.38512]
[1743251248720,0.55,1857.2,1857.0,5.38487]
[1743251248915,6.03831536,1857.3,1857.0,5.38487]
[1743251249139,3.0,1857.2,1857.1,5.38466]
[1743251249336,6.03831536,1857.3,1857.1,5.38466]
[1743251249550,3.0,1857.2,1857.1,5.38466]
[1743251249845,3.0,1857.2,1857.0,5.38494]
[1743251250219,3.0,1857.2,1857.0,10.76977]
[1743251250421,3.0,1857.2,1857.0,5.38483]
[1743251250823,6.00972872,1857.2,1857.0,5.38483]
[1743251252449,6.00972872,1857.2,1857.1,5.38473]
[1743251252824,5.50972872,1857.2,1857.1,5.38473]
[1743251253154,5.50972872,1857.2,1857.0,5.38495]
[1743251253451,5.50972872,1857.2,1857.0,10.76977]
[1743251253952,5.50972872,1857.2,1857.0,5.38482]
[1743251254119,2.5,1857.2,1857.0,5.38482]
[1743251254325,2.5,1857.2,1857.1,5.38473]
[1743251256157,0.7546,1857.4,1857.3,5.38415]
[1743251256350,5.637,1857.5,1857.4,5.38377]
[1743251256549,8.637,1857.5,1857.4,5.38377]
[1743251257130,3.0,1857.5,1857.4,5.38377]
[1743251259362,3.0,1857.5,1857.4,6.460562]
[1743251261334,3.0,1857.5,1857.4,5.38377]
[1743251262760,6.00972872,1857.5,1857.2,6.21063]
[1743251262960,6.00972872,1857.5,1857.0,5.38485]
[1743251262961,3.0,1857.2,1857.0,5.38485]
[1743251263160,6.00972872,1857.2,1857.1,5.38473]
[1743251264762,3.0,1857.2,1857.1,5.38473]
[1743251265140,5.38516,1857.0,1856.6,5.38615]